[Event "79th Noteboom 2019"]
[Site "Leiden"]
[Date "2019.02.22"]
[Round "1.3"]
[White "Straver, Robert"]
[Black "Schoppen, Casper"]
[Result "0-1"]
[ECO "E90"]
[WhiteElo "2128"]
[BlackElo "2463"]
[Annotator "ChessBase"]
[PlyCount "68"]
[EventDate "2019.02.22"]
[EventType "swiss"]
[EventCountry "NED"]
[SourceTitle "playchess.com"]
[Source "ChessBase"]
[SourceQuality "1"]
[TimeControl "6600+10"]

1. d4 {[%emt 0:09:53]} Nf6 {[%emt 0:10:08]} 2. Nf3 {[%emt 0:00:09]} c5 {[%emt 0:01:19]} 3. d5 {[%emt 0:00:34]} e6 {[%emt 0:00:08]} 4. c4 {[%emt 0:00:46]} d6 {[%emt 0:00:38]} 5. Nc3 {[%emt 0:00:13]} g6 {[%emt 0:00:06]} 6. e4 {[%emt 0:02:09]} Bg7 {[%emt 0:00:07]} 7. Bd3 {[%emt 0:00:54]} O-O {[%emt 0:00:23]} 8. O-O {[%emt 0:00:41]} exd5 {[%emt 0:00:04]} 9. exd5 {[%emt 0:02:30]} Bg4 {[%emt 0:00:39]} 10. h3 {[%emt 0:05:22]} Bxf3 {[%emt 0:00:15]} 11. Qxf3 {[%emt 0:00:06]} Nfd7 {[%emt 0:00:05]} 12. Qd1 {[%emt 0:01:40]} Bxc3 {[%emt 0:00:53]} 13. bxc3 {[%emt 0:00:09]} Ne5 {[%emt 0:00:10]} 14. Re1 {[%emt 0:03:58]} Nbd7 {[%emt 0:03:03]} 15. Bf1 {[%emt 0:05:59]} f5 {[%emt 0:00:57]} 16. f4 {[%emt 0:01:04]} Nf7 {[%emt 0:00:05]} 17. Rb1 {[%emt 0:01:52]} b6 {[%emt 0:01:17]} 18. Rb2 {[%emt 0:04:50]} Nf6 {[%emt 0:12:15]} 19. Bd3 {[%emt 0:03:26]} Qd7 {[%emt 0:02:44]} 20. Rbe2 {[%emt 0:14:34]} Rae8 {[%emt 0:02:56]} 21. Bd2 {[%emt 0:06:29]} Rxe2 {[%emt 0:01:26]} 22. Rxe2 {[%emt 0:00:06]} Re8 {[%emt 0:00:08]} 23. Qe1 {[%emt 0:01:29]} Rxe2 {[%emt 0:00:49]} 24. Qxe2 {[%emt 0:00:10]} a6 {[%emt 0:06:33]} 25. Be1 {[%emt 0:01:28]} Nh5 {[%emt 0:02:20]} 26. Bd2 {[%emt 0:05:37]} Qa4 {[%emt 0:04:14]} 27. g4 {[%emt 0:02:12]} Ng3 {[%emt 0:03:28]} 28. Qe1 {[%emt 0:01:13]} Qxa2 {[%emt 0:01:51]} 29. gxf5 {[%emt 0:00:58]} Nxf5 {[%emt 0:00:38]} 30. Bxf5 {[%emt 0:06:07]} gxf5 {[%emt 0:02:15]} 31. Qg3+ {[%emt 0:00:27]} Kf8 {[%emt 0:00:34]} 32. Qd3 {[%emt 0:00:10]} Qa1+ {[%emt 0:00:30]} 33. Kg2 {[%emt 0:00:42]} Qd1 {[%emt 0:00:17]} 34. Qe3 {[%emt 0:01:29]} a5 {[%emt 0:02:03]} 0-1

[Event "79th Noteboom 2019"]
[Site "Leiden"]
[Date "2019.02.22"]
[Round "1.4"]
[White "Lahaye, Rick"]
[Black "Berresheim, Helmut"]
[Result "1-0"]
[ECO "A12"]
[WhiteElo "2411"]
[BlackElo "2096"]
[Annotator "NA"]
[PlyCount "79"]
[EventDate "2019.02.22"]
[EventType "swiss"]
[EventCountry "NED"]
[SourceTitle "playchess.com"]
[Source "ChessBase"]
[SourceQuality "1"]
[TimeControl "6600+10"]

1. Nf3 {[%emt 0:10:08]} d5 {[%emt 0:10:03]} 2. c4 {[%emt 0:00:07]} c6 {[%emt 0:00:11]} 3. b3 {[%emt 0:00:22]} Bg4 {[%emt 0:01:24]} 4. Ne5 {[%emt 0:01:09]} Bf5 {[%emt 0:02:44]} 5. Bb2 {[%emt 0:00:28]} f6 {[%emt 0:05:09]} 6. Nf3 {[%emt 0:05:57] A12: English Opening: 1...c6 with b3 by White} e5 {[%emt 0:00:23]} 7. e3 {[%emt 0:00:11]} Bd6 {[%emt 0:03:13]} 8. Nc3 {[%emt 0:01:47]} Ne7 {[%emt 0:01:13]} 9. d3 {[%emt 0:00:46]} O-O {[%emt 0:03:30]} 10. Be2 {[%emt 0:03:38]} a5 $146 {[%emt 0:05:12]} ({Predecessor:} 10... Be6 11. O-O a6 12. Re1 {0-1 (62) Lie,E (2471)-Volkov,S (2593) Fagernes 2013}) 11. O-O {[%emt 0:04:34]} Na6 {[%emt 0:00:29]} 12. e4 {[%emt 0:08:35]} Be6 {[%emt 0:08:22]} 13. cxd5 {[%emt 0:05:06]} cxd5 {[%emt 0:00:07]} 14. d4 {[%emt 0:00:10]} exd4 {[%emt 0:08:06]} 15. Nxd4 {[%emt 0:01:45]} Bf7 {[%emt 0:00:09]} 16. exd5 {[%emt 0:04:24]} Nxd5 {[%emt 0:04:41]} 17. Nxd5 {[%emt 0:00:43]} Bxd5 {[%emt 0:00:12]} 18. Nf5 {[%emt 0:00:05]} Nc7 {[%emt 0:12:27]} 19. Rc1 {[%emt 0:03:54]} Kh8 {[%emt 0:10:27]} 20. Bf3 {[%emt 0:16:55]} Be5 {[%emt 0:11:46]} 21. Ba3 {[%emt 0:03:38]} Re8 {[%emt 0:02:11]} 22. Re1 {[%emt 0:07:13]} Bxf3 {[%emt 0:03:24]} 23. Qxf3 {[%emt 0:00:16]} ({Much weaker is} 23. gxf3 Nb5 $15) 23... Qd5 {[%emt 0:00:13] [#]} 24. Qg4 $1 {[%emt 0:02:33]} g6 {[%emt 0:01:18]} 25. Ne3 {[%emt 0:01:01]} Qe6 {[%emt 0:01:53]} 26. Qf3 {[%emt 0:00:38]} Nb5 {[%emt 0:00:28]} 27. Bc5 {[%emt 0:01:30]} b6 {[%emt 0:01:10]} 28. a4 {[%emt 0:00:38]} bxc5 {[%emt 0:02:09]} 29. axb5 {[%emt 0:00:06]} Qxb3 {[%emt 0:00:05]} 30. Rxc5 {[%emt 0:00:10]} Bd4 {[%emt 0:04:00]} 31. Rc7 {[%emt 0:02:36]} f5 {[%emt 0:04:19]} 32. Rd1 $15 {[%emt 0:04:19]} (32. Qc6 $14 Qe6 33. Rd7) 32... Bxe3 {[%emt 0:04:22]} 33. fxe3 {[%emt 0:00:12]} Qxe3+ {[%emt 0:00:00]} 34. Qxe3 {[%emt 0:00:09]} Rxe3 {[%emt 0:00:00]} 35. b6 {[%emt 0:00:17]} Ree8 {[%emt 0:00:00]} 36. b7 {[%emt 0:01:17]} Rab8 {[%emt 0:00:00]} 37. Ra1 {[%emt 0:01:29]} Re5 {[%emt 0:00:00]} 38. Rc8+ {[%emt 0:00:44]} Re8 {[%emt 0:00:00]} 39. Rxe8+ {[%emt 0:00:12]} Rxe8 {[%emt 0:00:00]} 40. Rxa5 {[%emt 0:00:09]} 1-0

[Event "79th Noteboom 2019"]
[Site "Leiden"]
[Date "2019.02.23"]
[Round "3.1"]
[White "Bekker, Stefan"]
[Black "Van Wely, Loek"]
[Result "0-1"]
[ECO "A07"]
[WhiteElo "2257"]
[BlackElo "2622"]
[Annotator "RC"]
[PlyCount "66"]
[EventDate "2019.02.22"]
[EventType "swiss"]
[EventCountry "NED"]
[SourceTitle "playchess.com"]
[Source "ChessBase"]
[SourceQuality "1"]
[TimeControl "6600+10"]

1. Nf3 {[%emt 0:11:43]} Nf6 {[%emt 0:13:57]} 2. g3 {[%emt 0:00:12]} d5 {[%emt 0:00:51]} 3. Bg2 {[%emt 0:00:58]} c6 {[%emt 0:01:01]} 4. O-O {[%emt 0:01:14]} h6 {[%emt 0:07:15]} 5. d3 {[%emt 0:01:04]} Bf5 {[%emt 0:01:18]} 6. Nbd2 {[%emt 0:00:11]} e6 {[%emt 0:00:15]} 7. b3 {[%emt 0:00:06]} Be7 {[%emt 0:00:51]} 8. Bb2 {[%emt 0:00:27]} O-O {[%emt 0:00:16]} 9. Ne5 {[%emt 0:01:31]} a5 {[%emt 0:00:45]} 10. a3 {[%emt 0:00:50]} Bh7 {[%emt 0:01:51]} 11. e4 {[%emt 0:02:56]} Nbd7 {[%emt 0:04:20]} 12. Nxd7 {[%emt 0:05:03]} Nxd7 {[%emt 0:00:10]} 13. Qe2 {[%emt 0:00:09]} Rc8 {[%emt 0:03:25]} 14. Kh1 {[%emt 0:05:08]} a4 {[%emt 0:13:05]} 15. b4 {[%emt 0:02:17]} b5 {[%emt 0:00:19]} 16. c4 {[%emt 0:01:43]} c5 {[%emt 0:11:35]} 17. d4 {[%emt 0:21:12]} cxb4 {[%emt 0:05:21]} 18. c5 {[%emt 0:01:26]} bxa3 {[%emt 0:00:33]} 19. Bxa3 {[%emt 0:01:29]} dxe4 {[%emt 0:01:00]} 20. Nxe4 {[%emt 0:03:06]} Bxe4 {[%emt 0:03:33]} 21. Bxe4 {[%emt 0:03:54]} Nf6 {[%emt 0:11:41]} 22. Bb7 {[%emt 0:00:32]} b4 {[%emt 0:02:07]} 23. Bxc8 {[%emt 0:16:34]} Qxc8 {[%emt 0:00:10]} 24. Bc1 {[%emt 0:00:37]} Qc6+ {[%emt 0:07:18]} 25. Kg1 {[%emt 0:00:34]} Rb8 {[%emt 0:04:56]} 26. Qc4 {[%emt 0:00:58]} Nd5 {[%emt 0:01:09]} 27. Bd2 {[%emt 0:00:41]} Bg5 {[%emt 0:00:13]} 28. f4 {[%emt 0:09:29]} Bf6 {[%emt 0:00:10]} 29. Rfb1 {[%emt 0:00:41]} Rd8 {[%emt 0:00:36]} 30. Qd3 {[%emt 0:09:31]} b3 {[%emt 0:02:57]} 31. Rd1 {[%emt 0:03:32]} Ne7 {[%emt 0:01:50]} 32. Bc3 {[%emt 0:00:39]} Nf5 {[%emt 0:00:46]} 33. Qc4 {[%emt 0:00:52]} Ne3 {[%emt 0:00:46]} 0-1

[Event "79th Noteboom 2019"]
[Site "Leiden"]
[Date "2019.02.23"]
[Round "3.2"]
[White "Nikolic, Predrag"]
[Black "Van Dijk, Harold"]
[Result "1-0"]
[ECO "E60"]
[WhiteElo "2573"]
[BlackElo "2238"]
[Annotator "ChessBase"]
[PlyCount "61"]
[EventDate "2019.02.22"]
[EventType "swiss"]
[EventCountry "NED"]
[SourceTitle "playchess.com"]
[Source "ChessBase"]
[SourceQuality "1"]
[TimeControl "6600+10"]

1. Nf3 {[%emt 0:13:38]} Nf6 {[%emt 0:10:11]} 2. g3 {[%emt 0:00:07]} g6 {[%emt 0:00:12]} 3. Bg2 {[%emt 0:00:05]} Bg7 {[%emt 0:00:11]} 4. O-O {[%emt 0:00:06]} O-O {[%emt 0:00:10]} 5. d4 {[%emt 0:00:10]} c5 {[%emt 0:00:26]} 6. d5 {[%emt 0:00:31]} d6 {[%emt 0:00:52]} 7. c4 {[%emt 0:00:19]} b5 {[%emt 0:00:26]} 8. cxb5 {[%emt 0:00:18]} a6 {[%emt 0:00:19]} 9. bxa6 {[%emt 0:00:07]} Nxa6 {[%emt 0:00:17]} 10. Nc3 {[%emt 0:00:15]} Bf5 {[%emt 0:00:23]} 11. Ne1 {[%emt 0:01:45]} Rb8 {[%emt 0:05:39]} 12. Nc2 {[%emt 0:01:29]} Ng4 {[%emt 0:05:37]} 13. h3 {[%emt 0:06:05]} Ne5 {[%emt 0:00:22]} 14. Ne3 {[%emt 0:00:45]} Bc8 {[%emt 0:01:44]} 15. Rb1 {[%emt 0:06:19]} Nf3+ {[%emt 0:04:30]} 16. Bxf3 {[%emt 0:00:36]} Bxc3 {[%emt 0:00:04]} 17. h4 {[%emt 0:00:16]} Bd4 {[%emt 0:00:39]} 18. a3 {[%emt 0:03:16]} Bxe3 {[%emt 0:07:05]} 19. fxe3 {[%emt 0:02:53]} Rb7 {[%emt 0:04:33]} 20. Bd2 {[%emt 0:03:50]} Nb8 {[%emt 0:00:07]} 21. b4 {[%emt 0:01:12]} cxb4 {[%emt 0:00:06]} 22. axb4 {[%emt 0:04:31]} Qb6 {[%emt 0:00:09]} 23. Rc1 {[%emt 0:12:53]} Bd7 {[%emt 0:03:10]} 24. Qc2 {[%emt 0:02:42]} Bb5 {[%emt 0:12:21]} 25. Qe4 {[%emt 0:00:23]} Qd8 {[%emt 0:01:14]} 26. h5 {[%emt 0:02:54]} Kg7 {[%emt 0:00:45]} 27. Kg2 {[%emt 0:02:14]} g5 {[%emt 0:03:56]} 28. Qf5 {[%emt 0:04:51]} f6 {[%emt 0:00:05]} 29. h6+ {[%emt 0:00:36]} Kh8 {[%emt 0:01:55]} 30. Be4 {[%emt 0:00:08]} e6 {[%emt 0:00:32]} 31. dxe6 {[%emt 0:00:10]} 1-0

[Event "79th Noteboom 2019"]
[Site "Leiden"]
[Date "2019.02.23"]
[Round "3.3"]
[White "Van Vliet, Jeffrey"]
[Black "Clemens, Adrian"]
[Result "1-0"]
[ECO "B50"]
[WhiteElo "2379"]
[BlackElo "2126"]
[Annotator "NA"]
[PlyCount "109"]
[EventDate "2019.02.22"]
[EventType "swiss"]
[EventCountry "NED"]
[SourceTitle "playchess.com"]
[Source "ChessBase"]
[SourceQuality "1"]
[TimeControl "6600+10"]

1. e4 {[%emt 0:12:57]} c5 {[%emt 0:10:16]} 2. Nf3 {[%emt 0:00:08]} d6 {[%emt 0:00:16]} 3. c3 {[%emt 0:00:38]} Nf6 {[%emt 0:01:54]} 4. Be2 {[%emt 0:00:06]} g6 {[%emt 0:03:17]} 5. O-O {[%emt 0:00:14]} Bg7 {[%emt 0:00:06]} 6. Re1 {[%emt 0:00:11]} O-O {[%emt 0:00:59]} 7. Bf1 {[%emt 0:00:11]} Nc6 {[%emt 0:05:11]} 8. d3 {[%emt 0:09:44]} b6 {[%emt 0:06:46]} 9. Nbd2 {[%emt 0:10:15]} Bb7 {[%emt 0:03:17]} 10. d4 {[%emt 0:01:08]} cxd4 {[%emt 0:05:35]} 11. cxd4 {[%emt 0:00:09]} e6 {[%emt 0:06:06]} 12. b3 {[%emt 0:10:54]} d5 {[%emt 0:15:06]} 13. e5 {[%emt 0:00:29]} Nd7 {[%emt 0:00:44]} 14. Ba3 {[%emt 0:05:37]} Re8 {[%emt 0:00:09]} 15. Rc1 {[%emt 0:01:35]} Rc8 {[%emt 0:01:12]} 16. Bd3 {[%emt 0:09:33]} Ndb8 {[%emt 0:03:38]} 17. Qe2 {[%emt 0:01:09]} Qd7 {[%emt 0:05:10]} 18. Bd6 {[%emt 0:07:36]} Bf8 {[%emt 0:12:26]} 19. Bxf8 {[%emt 0:00:54]} Rxf8 {[%emt 0:00:39]} 20. a3 {[%emt 0:06:30]} Ne7 {[%emt 0:04:12]} 21. Nf1 {[%emt 0:12:58]} Kg7 {[%emt 0:03:14]} 22. Ne3 {[%emt 0:03:42]} Ng8 {[%emt 0:02:55]} 23. h4 {[%emt 0:01:45]} Qe7 {[%emt 0:02:07]} 24. b4 {[%emt 0:00:25]} Rxc1 {[%emt 0:02:01]} 25. Rxc1 {[%emt 0:00:06]} Rc8 {[%emt 0:00:05]} 26. Qd2 {[%emt 0:00:47]} Qd8 {[%emt 0:03:00]} 27. Ng4 {[%emt 0:01:30]} Nd7 {[%emt 0:02:55]} 28. Rxc8 {[%emt 0:01:34]} Bxc8 {[%emt 0:00:06]} 29. Qf4 {[%emt 0:01:51]} Qe7 {[%emt 0:03:21]} 30. Bb5 {[%emt 0:00:24]} Nf8 {[%emt 0:00:08]} 31. h5 {[%emt 0:02:04]} gxh5 {[%emt 0:00:38]} 32. Nf6 {[%emt 0:00:11]} Ng6 {[%emt 0:02:53]} 33. Qc1 {[%emt 0:00:55]} Bb7 {[%emt 0:00:42]} 34. Nxh5+ {[%emt 0:00:32]} Kh8 {[%emt 0:01:00]} 35. g3 {[%emt 0:02:43]} Qd8 {[%emt 0:02:06]} 36. Bd3 {[%emt 0:02:17]} h6 {[%emt 0:00:36]} 37. Bxg6 {[%emt 0:00:49]} fxg6 {[%emt 0:00:04]} 38. Nf4 {[%emt 0:00:03]} Qe8 {[%emt 0:00:22]} 39. Qc7 {[%emt 0:00:17]} g5 {[%emt 0:00:07]} 40. Nxe6 {[%emt 0:00:58]} Qxe6 {[%emt 0:00:02]} 41. Qxb7 {[%emt 0:00:05]} Ne7 {[%emt 0:00:13]} 42. Qxa7 {[%emt 0:00:15]} Nf5 {[%emt 0:00:03]} 43. Qb8+ {[%emt 0:00:17]} Kh7 {[%emt 0:00:06]} 44. Qc7+ {[%emt 0:00:16]} Kg8 {[%emt 0:00:02]} 45. Qc3 {[%emt 0:00:25]} g4 {[%emt 0:00:17]} 46. Nh4 {[%emt 0:00:08]} Ne7 {[%emt 0:00:19]} 47. Ng2 {[%emt 0:00:03]} Qf5 {[%emt 0:00:09]} 48. Ne3 {[%emt 0:00:16]} Qb1+ {[%emt 0:00:04]} 49. Kg2 {[%emt 0:00:02]} Qe4+ {[%emt 0:00:02]} 50. Kg1 {[%emt 0:00:05]} Qb1+ {[%emt 0:00:01]} 51. Kh2 {[%emt 0:00:06]} Qa2 {[%emt 0:00:01]} 52. Nxg4 {[%emt 0:00:09]} h5 {[%emt 0:00:03]} 53. Nf6+ {[%emt 0:00:03]} Kf7 {[%emt 0:00:01]} 54. Qf3 {[%emt 0:00:04]} Ke6 {[%emt 0:00:04]} 55. Nxh5 {[%emt 0:00:19]} 1-0

[Event "79th Noteboom 2019"]
[Site "Leiden"]
[Date "2019.02.23"]
[Round "3.4"]
[White "Lahaye, Rick"]
[Black "Elgersma, Simon"]
[Result "1-0"]
[ECO "D05"]
[WhiteElo "2411"]
[BlackElo "2148"]
[Annotator "NA"]
[PlyCount "155"]
[EventDate "2019.02.22"]
[EventType "swiss"]
[EventCountry "NED"]
[SourceTitle "playchess.com"]
[Source "ChessBase"]
[SourceQuality "1"]
[TimeControl "6600+10"]

1. d4 {[%emt 0:10:15]} e6 {[%emt 0:10:04]} 2. e3 {[%emt 0:00:54]} Nf6 {[%emt 0:00:56]} 3. Bd3 {[%emt 0:00:10]} d5 {[%emt 0:01:50]} 4. Nd2 {[%emt 0:00:40]} c5 {[%emt 0:03:08]} 5. c3 {[%emt 0:05:17]} Nbd7 {[%emt 0:04:54]} 6. Ngf3 {[%emt 0:05:49]} Bd6 {[%emt 0:02:48]} 7. O-O {[%emt 0:00:12]} O-O {[%emt 0:02:43]} 8. Re1 {[%emt 0:02:03]} e5 {[%emt 0:09:07]} 9. e4 {[%emt 0:18:13]} cxd4 {[%emt 0:16:26]} 10. cxd4 {[%emt 0:04:41]} Re8 {[%emt 0:15:53]} 11. exd5 {[%emt 0:14:32]} exd4 {[%emt 0:05:04]} 12. Ne4 {[%emt 0:10:20]} Ne5 {[%emt 0:10:01]} 13. Bg5 {[%emt 0:13:11]} Bg4 {[%emt 0:04:35]} 14. Bxf6 {[%emt 0:01:49]} gxf6 {[%emt 0:01:03]} 15. Be2 {[%emt 0:03:10]} f5 {[%emt 0:12:39]} 16. Nxd6 {[%emt 0:12:56]} Qxd6 {[%emt 0:00:16]} 17. Qxd4 {[%emt 0:00:09]} Bxf3 {[%emt 0:01:13]} 18. Bxf3 {[%emt 0:00:13]} Re7 {[%emt 0:01:33]} 19. Re3 {[%emt 0:01:49]} Rae8 {[%emt 0:02:46]} 20. Rae1 {[%emt 0:01:44]} f6 {[%emt 0:04:06]} 21. Kh1 {[%emt 0:00:28]} Rd8 {[%emt 0:00:48]} 22. Bd1 {[%emt 0:00:49]} Kh8 {[%emt 0:00:26]} 23. h3 {[%emt 0:02:48]} Nc6 {[%emt 0:00:52]} 24. Qh4 {[%emt 0:00:14]} Ne5 {[%emt 0:00:19]} 25. Bb3 {[%emt 0:00:38]} Ng6 {[%emt 0:00:08]} 26. Qd4 {[%emt 0:00:07]} Re5 {[%emt 0:00:18]} 27. Qxa7 {[%emt 0:00:34]} Qb4 {[%emt 0:00:15]} 28. Rxe5 {[%emt 0:00:26]} fxe5 {[%emt 0:00:01]} 29. Qe3 {[%emt 0:00:06]} f4 {[%emt 0:00:01]} 30. Qe2 {[%emt 0:00:09]} Re8 {[%emt 0:00:06]} 31. Qe4 {[%emt 0:00:09]} Qd2 {[%emt 0:00:04]} 32. Re2 {[%emt 0:00:03]} Qc1+ {[%emt 0:00:01]} 33. Kh2 {[%emt 0:00:01]} Qc7 {[%emt 0:00:05]} 34. f3 {[%emt 0:00:17]} Qe7 {[%emt 0:00:00]} 35. d6 {[%emt 0:00:15]} Qxd6 {[%emt 0:00:09]} 36. Bf7 {[%emt 0:00:07]} Re7 {[%emt 0:00:05]} 37. Bxg6 {[%emt 0:00:25]} hxg6 {[%emt 0:00:01]} 38. Rc2 {[%emt 0:00:06]} Kg7 {[%emt 0:00:06]} 39. Rc8 {[%emt 0:00:19]} Qe6 {[%emt 0:00:17]} 40. Ra8 {[%emt 0:00:10]} Rd7 {[%emt 0:00:10]} 41. Qb4 {[%emt 0:00:15]} Qf6 {[%emt 0:00:02]} 42. Rb8 {[%emt 0:00:06]} Qf7 {[%emt 0:00:28]} 43. Qc5 {[%emt 0:00:07]} Re7 {[%emt 0:00:23]} 44. Qc8 {[%emt 0:00:06]} Kh6 {[%emt 0:00:24]} 45. Qh8+ {[%emt 0:00:04]} Qh7 {[%emt 0:00:08]} 46. Qf6 {[%emt 0:00:03]} Rf7 {[%emt 0:00:16]} 47. Qxe5 {[%emt 0:00:09]} Rf5 {[%emt 0:00:10]} 48. Qh8 {[%emt 0:00:24]} Qxh8 {[%emt 0:00:09]} 49. Rxh8+ {[%emt 0:00:01]} Kg7 {[%emt 0:00:07]} 50. Rd8 {[%emt 0:00:11]} Rb5 {[%emt 0:00:06]} 51. b3 {[%emt 0:00:02]} Kf6 {[%emt 0:00:02]} 52. Rd4 {[%emt 0:00:11]} Ke5 {[%emt 0:00:08]} 53. Rc4 {[%emt 0:00:12]} Rd5 {[%emt 0:00:07]} 54. Rb4 {[%emt 0:00:05]} b5 {[%emt 0:00:29]} 55. h4 {[%emt 0:00:15]} Kf5 {[%emt 0:00:03]} 56. Kh3 {[%emt 0:00:05]} Rc5 {[%emt 0:00:34]} 57. g3 {[%emt 0:00:16]} fxg3 {[%emt 0:00:09]} 58. Kxg3 {[%emt 0:00:02]} Kf6 {[%emt 0:00:05]} 59. Kg4 {[%emt 0:00:11]} Rd5 {[%emt 0:00:12]} 60. Rf4+ {[%emt 0:00:12]} Ke6 {[%emt 0:00:04]} 61. a4 {[%emt 0:00:10]} Rd3 {[%emt 0:00:08]} 62. Rb4 {[%emt 0:00:17]} bxa4 {[%emt 0:00:11]} 63. bxa4 {[%emt 0:00:02]} Ra3 {[%emt 0:00:06]} 64. Rb6+ {[%emt 0:00:15]} Kf7 {[%emt 0:00:04]} 65. Ra6 {[%emt 0:00:02]} Ra1 {[%emt 0:00:04]} 66. Ra7+ {[%emt 0:00:39]} Kf6 {[%emt 0:00:09]} 67. a5 {[%emt 0:00:03]} Ra4+ {[%emt 0:00:01]} 68. f4 {[%emt 0:00:01]} Ra1 {[%emt 0:00:03]} 69. Ra6+ {[%emt 0:00:02]} Kg7 {[%emt 0:00:01]} 70. Ra8 {[%emt 0:00:13]} Kh7 {[%emt 0:00:31]} 71. a6 {[%emt 0:00:01]} Kg7 {[%emt 0:00:15]} 72. a7 {[%emt 0:00:37]} Ra3 {[%emt 0:00:07]} 73. h5 {[%emt 0:00:02]} gxh5+ {[%emt 0:00:36]} 74. Kxh5 {[%emt 0:00:01]} Ra5+ {[%emt 0:00:28]} 75. Kg4 {[%emt 0:00:04]} Kh7 {[%emt 0:00:03]} 76. f5 {[%emt 0:00:02]} Kg7 {[%emt 0:00:19]} 77. f6+ {[%emt 0:00:02]} Kh7 {[%emt 0:00:06]} 78. f7 {[%emt 0:00:02]} 1-0

[Event "79th Noteboom 2019"]
[Site "Leiden"]
[Date "2019.02.23"]
[Round "4.3"]
[White "Wiersma, Eelke"]
[Black "Slingerland, Fred"]
[Result "1/2-1/2"]
[ECO "B52"]
[WhiteElo "2338"]
[BlackElo "2355"]
[Annotator "NA"]
[PlyCount "27"]
[EventDate "2019.02.22"]
[EventType "swiss"]
[EventCountry "NED"]
[SourceTitle "playchess.com"]
[Source "ChessBase"]
[SourceQuality "1"]
[TimeControl "6600+10"]

1. e4 {[%emt 0:09:57]} c5 {[%emt 0:09:54]} 2. Nf3 {[%emt 0:00:08]} d6 {[%emt 0:00:06]} 3. Bb5+ {[%emt 0:00:10]} Bd7 {[%emt 0:00:04]} 4. Bxd7+ {[%emt 0:00:08]} Qxd7 {[%emt 0:00:03]} 5. O-O {[%emt 0:00:09]} Nc6 {[%emt 0:00:02]} 6. Qe2 {[%emt 0:00:10]} g6 {[%emt 0:01:15]} 7. c3 {[%emt 0:02:18]} Bg7 {[%emt 0:00:05]} 8. Rd1 {[%emt 0:00:20]} e5 {[%emt 0:01:45]} 9. b4 {[%emt 0:02:26]} cxb4 {[%emt 0:12:52]} 10. cxb4 {[%emt 0:00:15]} Nxb4 {[%emt 0:00:06]} 11. d4 {[%emt 0:03:17]} exd4 {[%emt 0:11:47]} 12. Nxd4 {[%emt 0:02:16]} Ne7 {[%emt 0:00:14]} 13. Bb2 {[%emt 0:07:11]} O-O {[%emt 0:02:45]} 14. Na3 {[%emt 0:05:07]} 1/2-1/2